fUST/lending_fUST_20251027
["ID","MTS","AMOUNT","RATE_DAILY","PERIOD"]
[392472582,1761533432842,-151.0,0.00015195,2]
[392472584,1761533432851,-531.85326295,0.00015195,2]
[392472586,1761533432860,-531.85326295,0.00015195,2]
[392472588,1761533432870,-531.85326295,0.00015195,2]
[392472590,1761533432879,-531.85326295,0.00015195,2]
[392472593,1761533432888,-531.85326295,0.00015195,2]
[392472595,1761533432898,-531.85326295,0.00015195,2]
[392472597,1761533432907,-531.85326295,0.00015195,2]
[392472599,1761533432916,-531.85326295,0.00015195,2]
[392472600,1761533432926,-531.85326295,0.00015195,2]
[392472602,1761533432936,-531.85326295,0.00015195,2]
[392472605,1761533432945,-365.28957256,0.00015195,2]
[392472617,1761533433048,-367.51370511,0.00015195,2]
[392472793,1761533438151,-500.0,0.00015194,2]
[392472794,1761533438169,-220.62718403,0.00015194,2]
[392472795,1761533438184,-328.06123129,0.00015194,2]
[392472796,1761533438194,-97.7263393,0.00015194,2]
[392472797,1761533438206,-402.2736607,0.00015194,2]
[392472798,1761533438216,-500.0,0.00015194,2]
[392472799,1761533438226,-500.0,0.00015194,2]
[392472800,1761533438235,-500.0,0.00015194,2]
[392472801,1761533438245,-500.0,0.00015194,2]
[392472802,1761533438255,-412.43208804,0.00015194,2]
[392472803,1761533438267,-87.56791196,0.00015194,2]
[392472804,1761533438278,-500.0,0.00015194,2]
[392472805,1761533438287,-500.0,0.00015194,2]
[392472806,1761533438297,-500.0,0.00015194,2]
[392472807,1761533438307,-500.0,0.00015194,2]
[392472808,1761533438317,-500.0,0.00015194,2]
[392472809,1761533438327,-500.0,0.00015194,2]
[392472810,1761533438336,-500.0,0.00015194,2]
[392472811,1761533438348,-325.24767757,0.00015194,2]
[392472812,1761533438359,-174.75232243,0.00015194,2]
[392472813,1761533438369,-280.43017301,0.00015194,2]
[392472814,1761533438382,-219.56982699,0.00015194,2]
[392472815,1761533438391,-478.74388643,0.00015194,2]
[392472816,1761533438401,-500.0,0.00015194,2]
[392472817,1761533438410,-500.0,0.00015194,2]
[392472818,1761533438420,-273.90987643,0.00015194,2]
[392472819,1761533438521,-226.09012357,0.00015194,2]
[392472820,1761533438531,-500.0,0.00015194,2]
[392472821,1761533438541,-500.0,0.00015194,2]
[392472822,1761533438551,-500.0,0.00015194,2]
[392472823,1761533438560,-500.0,0.00015194,2]
[392472824,1761533438570,-500.0,0.00015194,2]
[392472825,1761533438580,-500.0,0.00015194,2]
[392472826,1761533438590,-394.79748023,0.00015194,2]
[392472827,1761533438599,-306.22245686,0.00015194,2]
[392472828,1761533438611,-193.77754314,0.00015194,2]
[392472829,1761533438620,-500.0,0.00015194,2]
[392472830,1761533438630,-500.0,0.00015194,2]
[392472831,1761533438640,-500.0,0.00015194,2]
[392472832,1761533438650,-500.0,0.00015194,2]
[392472833,1761533438659,-251.18886669,0.00015194,2]
[392472834,1761533438669,-500.0,0.00015194,2]
[392472835,1761533438680,-500.0,0.00015194,2]
[392472836,1761533438689,-500.0,0.00015194,2]
[392472837,1761533438699,-500.0,0.00015194,2]
[392472838,1761533438708,-23.67496047,0.00015194,2]
[392472839,1761533438720,-476.32503953,0.00015194,2]
[392472840,1761533438729,-500.0,0.00015194,2]
[392472841,1761533438739,-500.0,0.00015194,2]
[392472842,1761533438748,-500.0,0.00015194,2]
[392472843,1761533438757,-500.0,0.00015194,2]
[392472844,1761533438767,-500.0,0.00015194,2]
[392472845,1761533438782,-500.0,0.00015194,2]
[392472846,1761533438795,-500.0,0.00015194,2]
[392472847,1761533438805,-500.0,0.00015194,2]
[392472848,1761533438816,-500.0,0.00015194,2]
[392472849,1761533438825,-500.0,0.00015194,2]
[392472850,1761533438835,-500.0,0.00015194,2]
[392472851,1761533438844,-500.0,0.00015194,2]
[392472852,1761533438854,-500.0,0.00015194,2]
[392472853,1761533438865,-500.0,0.00015194,2]
[392472855,1761533438875,-500.0,0.00015194,2]
[392472856,1761533438885,-500.0,0.00015194,2]
[392472857,1761533438895,-500.0,0.00015194,2]
[392472858,1761533438904,-500.0,0.00015194,2]
[392472859,1761533438914,-500.0,0.00015194,2]
[392472860,1761533438924,-500.0,0.00015194,2]
[392472861,1761533438934,-500.0,0.00015194,2]
[392472862,1761533438944,-500.0,0.00015194,2]
[392472863,1761533438954,-500.0,0.00015194,2]
[392472864,1761533438963,-500.0,0.00015194,2]
[392472865,1761533438973,-500.0,0.00015194,2]
[392472866,1761533438983,-500.0,0.00015194,2]
[392472867,1761533438994,-488.08869755,0.00015194,2]
[392472868,1761533439004,-500.0,0.00015194,2]
[392472869,1761533439014,-500.0,0.00015194,2]
[392472870,1761533439024,-500.0,0.00015194,2]
[392472871,1761533439035,-500.0,0.00015194,2]
[392472872,1761533439046,-500.0,0.00015194,2]
[392472873,1761533439056,-500.0,0.00015194,2]
[392472874,1761533439067,-500.0,0.00015194,2]
[392472875,1761533439078,-500.0,0.00015194,2]
[392472876,1761533439088,-500.0,0.00015194,2]
[392472877,1761533439098,-500.0,0.00015194,2]
[392472878,1761533439108,-500.0,0.00015194,2]
[392472879,1761533439118,-500.0,0.00015194,2]
[392472880,1761533439131,-500.0,0.00015194,2]
[392472881,1761533439142,-500.0,0.00015194,2]
[392472882,1761533439153,-500.0,0.00015194,2]
[392472883,1761533439338,-500.0,0.00015194,2]
[392472884,1761533439348,-500.0,0.00015194,2]
[392472885,1761533439358,-500.0,0.00015194,2]
[392472886,1761533439368,-500.0,0.00015194,2]
[392472887,1761533439379,-158.18116977,0.00015194,2]
[392472888,1761533439389,-500.0,0.00015194,2]
[392472889,1761533439398,-500.0,0.00015194,2]
[392472890,1761533439407,-6403.69149216,0.00015195,2]
[392472891,1761533439420,-1607.44801557,0.00015195,2]
[392472892,1761533439432,-1018.95959998,0.00015195,2]
[392472929,1761533440421,-1352.42497568,0.00015195,2]
[392473036,1761533456411,1464.78332014,0.00015097,2]
[392473037,1761533498089,1277.42152611,0.0003013,120]
[392473038,1761533539721,24486.0,0.00030136,120]
[392473039,1761533584826,1222.32,0.00015493,3]
[392473040,1761533595502,611.16,0.00015493,3]
[392473041,1761533606194,305.58,0.00015493,3]
[392473042,1761533616801,152.79,0.00015493,3]
[392473043,1761533627454,458.4,0.00015493,3]
[392473048,1761533726843,1426.56820341,0.00015092,2]
[392473061,1761533800116,296.708491,0.00030137,120]
[392473077,1761533881971,2035.42208159,0.00014839,2]
[392473118,1761533987238,4249.82,0.00015456,3]
[392473125,1761533997924,2124.91,0.00015456,3]
[392473130,1761534007157,1248.24717794,0.0001509,2]
[392473131,1761534008605,1062.46,0.00015456,3]
[392473136,1761534019349,531.23,0.00015456,3]
[392473138,1761534026261,1000.0,0.00015,2]
[392473141,1761534030029,265.61,0.00015456,3]
[392473142,1761534040697,796.86,0.00015493,3]
[392473149,1761534063657,1000.0,0.00016,3]
[392473191,1761534173852,2068.8583265,0.00014188,2]
[392473203,1761534240771,197.67275745,0.00015087,2]
[392473216,1761534292981,1092.21628075,0.00015087,2]
[392473250,1761534366551,2035.42208159,0.00014936,2]
[392473283,1761534446864,-3000.0,0.0002,30]
[392473305,1761534558424,2118.0011493,0.00014185,2]
[392473306,1761534559434,-2950.3051157,0.0002,20]
[392473308,1761534573213,955.68924563,0.00015085,2]
[392473309,1761534593908,2744.67,0.00015456,3]
[392473310,1761534604566,1372.34,0.00015456,3]
[392473311,1761534615094,686.17,0.00015456,3]
[392473312,1761534625536,343.08,0.00015456,3]
[392473340,1761534632403,-254.73,0.00015105,2]
[392473341,1761534632414,-81.6350425,0.00015105,2]
[392473481,1761534636153,171.54,0.00015937,3]
[392473492,1761534638526,-173.0949575,0.00015105,2]
[392473493,1761534638536,-254.73,0.00015105,2]
[392473494,1761534638546,-196.0,0.0001511,2]
[392473495,1761534638555,-151.13734586,0.00015178,2]
[392473496,1761534638564,-375.37567696,0.00015184,2]
[392473497,1761534638574,-500.0,0.00015184,2]
[392473498,1761534638582,-228.38300551,0.00015184,2]
[392473499,1761534638592,-442.08265405,0.00015184,2]
[392473500,1761534638601,-194.57654074,0.00015184,2]
[392473501,1761534638611,-500.0,0.00015184,2]
[392473502,1761534638620,-500.0,0.00015184,2]
[392473503,1761534638629,-500.0,0.00015184,2]
[392473504,1761534638638,-500.0,0.00015184,2]
[392473505,1761534638647,-446.01444114,0.00015184,2]
[392473794,1761534646454,-53.98555886,0.00015184,2]
[392473795,1761534646465,-178.06601178,0.00015184,2]
[392473796,1761534646475,-500.0,0.00015184,2]
[392473797,1761534646486,-500.0,0.00015184,2]
[392473798,1761534646495,-500.0,0.00015184,2]
[392473799,1761534646506,-500.0,0.00015184,2]
[392473800,1761534646517,-207.44175117,0.00015184,2]
[392473801,1761534646856,514.66,0.00015937,3]
[392473802,1761534676489,-300.0,0.00015183,2]
[392473803,1761534676515,-292.55824883,0.00015184,2]
[392473804,1761534676540,-500.0,0.00015184,2]
[392473805,1761534676565,-500.0,0.00015184,2]
[392473806,1761534676590,-500.0,0.00015184,2]
[392473807,1761534676616,-500.0,0.00015184,2]
[392473808,1761534676641,-500.0,0.00015184,2]
[392473809,1761534676666,-500.0,0.00015184,2]
[392473810,1761534676691,-282.44175117,0.00015184,2]
[392473811,1761534706545,-217.55824883,0.00015184,2]
[392473812,1761534706585,-500.0,0.00015184,2]
[392473813,1761534706625,-500.0,0.00015184,2]
[392473814,1761534706667,-500.0,0.00015184,2]
[392473815,1761534706707,-500.0,0.00015184,2]
[392473816,1761534706747,-500.0,0.00015184,2]
[392473817,1761534706784,-500.0,0.00015184,2]
[392473818,1761534706823,-500.0,0.00015184,2]
[392473819,1761534706864,-432.44175117,0.00015184,2]
[392473820,1761534721939,167.79731792,0.00014939,2]
[392473821,1761534729861,1000.0,0.00016,3]
[392473822,1761534739484,1000.0,0.00015,2]
[392473823,1761534844477,836.2280899,0.00015082,2]
[392473825,1761534854779,2035.42208159,0.00014994,2]
[392473826,1761534854844,194.156103,0.00015068,2]
[392473827,1761534898377,151.0,0.000151,2]
[392473828,1761535051882,320.792535,0.00014182,2]
[392473829,1761535055552,403.66033073,0.00014619,2]
[392473830,1761535057471,1614.64132291,0.00014619,2]
[392473831,1761535059431,3632.94297655,0.00014619,2]
[392473832,1761535061533,6452.10672635,0.00014619,2]
[392473833,1761535097388,2546.20684716,0.00015089,2]
[392473834,1761535124780,731.69957868,0.00015081,2]
[392473835,1761535188842,1372.33,0.00015179,3]
[392473836,1761535199469,1086.43,0.00015179,3]
[392473838,1761535204896,151.0,0.000151,2]
[392473839,1761535205177,151.0,0.000143,2]
[392473840,1761535205480,151.0,0.000135,2]
[392473841,1761535205777,151.0,0.000126,2]
[392473842,1761535206082,151.0,0.000118,2]
[392473843,1761535206384,151.0,0.00011,2]
[392473844,1761535210216,543.22,0.00015179,3]
[392473845,1761535216259,494.17285585,0.00014619,2]
[392473846,1761535218377,1976.69142341,0.00014619,2]
[392473847,1761535220395,4447.55570266,0.00014619,2]
[392473848,1761535220736,271.61,0.00015179,3]
[392473849,1761535222302,7898.85892793,0.00014619,2]
[392473850,1761535231375,814.83,0.00015179,3]
[392473859,1761535386794,2035.42208159,0.00014842,2]
[392473860,1761535435379,640.23713138,0.00015077,2]
[392473861,1761535438705,2036.96547776,0.00015089,2]
[392473874,1761535578927,558.4849229,0.00014176,2]
[392474041,1761535710517,581.94002,0.00013699,2]
[392474054,1761535740692,480.17784849,0.00015074,2]
[392474062,1761535778704,1629.5723822,0.00015084,2]
[392474063,1761535793238,1091.19,0.00015174,3]
[392474064,1761535804109,545.6,0.00015174,3]
[392474065,1761535814703,272.8,0.00015174,3]
[392474066,1761535819367,151.0,0.000151,2]
[392474067,1761535819507,151.0,0.000143,2]
[392474068,1761535825352,818.41,0.00015174,3]
[392474155,1761535833181,-196.0,0.0001511,2]
[392474158,1761535833192,-283.6987552,0.00015173,2]
[392474164,1761535833243,-16.3012448,0.00015173,2]
[392474166,1761535833253,-300.0,0.00015173,2]
[392474168,1761535833263,-300.0,0.00015173,2]
[392474170,1761535833273,-300.0,0.00015173,2]
[392474172,1761535833283,-300.0,0.00015173,2]
[392474174,1761535833293,-1200.0,0.00015173,2]
[392474176,1761535833303,-509.86810385,0.00015173,2]
[392474178,1761535833314,-262.76297387,0.00015173,2]
[392474180,1761535833323,-500.0,0.00015173,2]
[392474182,1761535833333,-500.0,0.00015173,2]
[392474184,1761535833343,-500.0,0.00015173,2]
[392474186,1761535833353,-348.12267132,0.00015173,2]
[392474188,1761535833364,-500.0,0.00015173,2]
[392474190,1761535833374,-251.76840358,0.00015173,2]
[392474642,1761535838566,-248.23159642,0.00015173,2]
[392474643,1761535838577,-500.0,0.00015173,2]
[392474644,1761535838588,-500.0,0.00015173,2]
[392474645,1761535838600,-500.0,0.00015173,2]
[392474646,1761535838612,-500.0,0.00015173,2]
[392474647,1761535838627,-500.0,0.00015173,2]
[392474648,1761535838639,-500.0,0.00015173,2]
[392474649,1761535838653,-500.0,0.00015173,2]
[392474650,1761535838665,-500.0,0.00015173,2]
[392474651,1761535838676,-500.0,0.00015173,2]
[392474652,1761535838688,-500.0,0.00015173,2]
[392474653,1761535838698,-500.0,0.00015173,2]
[392474654,1761535838709,-500.0,0.00015173,2]
[392474655,1761535838719,-500.0,0.00015173,2]
[392474656,1761535838730,-500.0,0.00015173,2]
[392474657,1761535838740,-500.0,0.00015173,2]
[392474658,1761535838750,-500.0,0.00015173,2]
[392474659,1761535838760,-500.0,0.00015173,2]
[392474660,1761535838770,-500.0,0.00015173,2]
[392474661,1761535838779,-500.0,0.00015173,2]
[392474662,1761535838790,-500.0,0.00015173,2]
[392474663,1761535838799,-500.0,0.00015173,2]
[392474664,1761535838809,-500.0,0.00015173,2]
[392474665,1761535838819,-500.0,0.00015173,2]
[392474666,1761535838828,-500.0,0.00015173,2]
[392474667,1761535838839,-311.24851798,0.00015173,2]
[392474668,1761535838849,-500.0,0.00015173,2]
[392474669,1761535838861,-500.0,0.00015173,2]
[392474670,1761535838872,-500.0,0.00015173,2]
[392474671,1761535838882,-477.1188318,0.00015173,2]
[392474672,1761535838898,-22.8811682,0.00015173,2]
[392474673,1761535838908,-500.0,0.00015173,2]
[392474674,1761535838918,-500.0,0.00015173,2]
[392474675,1761535838927,-500.0,0.00015173,2]
[392474676,1761535838937,-500.0,0.00015173,2]
[392474677,1761535838946,-500.0,0.00015173,2]
[392474678,1761535838956,-500.0,0.00015173,2]
[392474679,1761535838966,-500.0,0.00015173,2]
[392474680,1761535838976,-500.0,0.00015173,2]
[392474681,1761535838986,-64.9333077,0.00015173,2]
[392474717,1761535843766,-254.175,0.00015173,2]
[392474724,1761535846689,-180.8916923,0.00015173,2]
[392474725,1761535846699,-500.0,0.00015173,2]
[392474726,1761535846708,-500.0,0.00015173,2]
[392474727,1761535846718,-500.0,0.00015173,2]
[392474728,1761535846727,-299.72043117,0.00015173,2]
[392474729,1761535984354,314.9575614,0.00014173,2]
[392474730,1761536036092,500.18525887,0.00015072,2]
[392474731,1761536199986,2035.42208159,0.00014894,2]
[392474732,1761536245187,1692.0,0.000151,2]
[392474733,1761536283683,178.31,0.00015095,2]
[392474734,1761536283730,178.31,0.00015095,2]
[392474735,1761536283967,178.31,0.00015095,2]
[392474736,1761536284184,165.15741764,0.00014936,2]
[392474737,1761536291329,437.66210152,0.0001507,2]
[392474738,1761536398471,636.53,0.00015163,3]
[392474739,1761536409251,318.26,0.00015163,3]
[392474740,1761536419836,159.13,0.00015163,3]
[392474741,1761536430440,477.42,0.00015163,3]
[392474742,1761536463133,1303.65790576,0.00015073,2]
[392474743,1761536506481,1973.0,0.00030136,120]
[392474746,1761536561734,382.95433883,0.00015068,2]
[392474747,1761536586062,205.74842588,0.0001501,2]
[392474748,1761536671443,250.0,0.00015007,2]
[392474749,1761536698480,254.95198661,0.0001501,2]
[392474750,1761536707777,1074.59622355,0.00015046,2]
[392474751,1761536729925,208.80380005,0.00014434,2]
[392474757,1761536803377,1042.9263246,0.00015073,2]
[392474758,1761536827382,222.531368,0.00030137,120]
[392474761,1761536837694,335.08504645,0.00015063,2]
[392474762,1761536846886,5159.62575077,0.00016,3]
[392474783,1761536885759,1000.0,0.00014164,2]
[392474789,1761537004104,371.3,0.0001516,3]
[392474790,1761537014758,185.65,0.0001516,3]
[392474791,1761537025413,556.99,0.0001516,3]
[392474816,1761537031762,-196.0,0.0001511,2]
[392474818,1761537031772,-154.24814564,0.00015157,2]
[392474820,1761537031782,-300.0,0.00015161,2]
[392474822,1761537031796,-300.0,0.00015161,2]
[392474824,1761537031807,-237.71972004,0.00015161,2]
[392474827,1761537031834,-62.28027996,0.00015161,2]
[392474829,1761537031843,-300.0,0.00015161,2]
[392474831,1761537031852,-300.0,0.00015161,2]
[392474833,1761537031861,-162.15972004,0.00015161,2]
[392474851,1761537037666,-1037.84027996,0.00015161,2]
[392474853,1761537037676,-183.93408171,0.00015162,2]
[392474855,1761537037685,-356.9076727,0.00015162,2]
[392474856,1761537037694,-500.0,0.00015162,2]
[392474857,1761537037703,-500.0,0.00015162,2]
[392474858,1761537037713,-500.0,0.00015162,2]
[392474859,1761537037722,-316.45807459,0.00015162,2]
[392474860,1761537037731,-500.0,0.00015162,2]
[392474861,1761537037740,-500.0,0.00015162,2]
[392474862,1761537037749,-500.0,0.00015162,2]
[392474863,1761537037759,-604.06386113,0.00015162,2]
[392474864,1761537037768,-500.0,0.00015162,2]
[392474865,1761537037778,-500.0,0.00015162,2]
[392474866,1761537037787,-500.0,0.00015162,2]
[392474867,1761537037797,-500.0,0.00015162,2]
[392474868,1761537037806,-500.0,0.00015162,2]
[392474869,1761537037816,-500.0,0.00015162,2]
[392474870,1761537037826,-500.0,0.00015162,2]
[392474871,1761537037835,-500.0,0.00015162,2]
[392474872,1761537037844,-437.71316037,0.00015162,2]
[392474873,1761537037854,-500.0,0.00015162,2]
[392474874,1761537037863,-500.0,0.00015162,2]
[392474875,1761537037872,-500.0,0.00015162,2]
[392474876,1761537037882,-500.0,0.00015162,2]
[392474877,1761537037891,-500.0,0.00015162,2]
[392474878,1761537037900,-500.0,0.00015162,2]
[392474879,1761537037909,-500.0,0.00015162,2]
[392474880,1761537037919,-500.0,0.00015162,2]
[392474881,1761537037928,-500.0,0.00015162,2]
[392474882,1761537037938,-500.0,0.00015162,2]
[392474883,1761537037947,-500.0,0.00015162,2]
[392474884,1761537037957,-500.0,0.00015162,2]
[392474885,1761537037966,-500.0,0.00015162,2]
[392474886,1761537037975,-500.0,0.00015162,2]
[392474887,1761537037985,-500.0,0.00015162,2]
[392474888,1761537037994,-500.0,0.00015162,2]
[392474889,1761537038003,-500.0,0.00015162,2]
[392474890,1761537038012,-166.0536732,0.00015162,2]
[392474891,1761537038021,-500.0,0.00015162,2]
[392474892,1761537038031,-500.0,0.00015162,2]
[392474893,1761537038040,-500.0,0.00015162,2]
[392474894,1761537038050,-500.0,0.00015162,2]
[392474895,1761537038059,-500.0,0.00015162,2]
[392474896,1761537038069,-500.0,0.00015162,2]
[392474897,1761537038078,-500.0,0.00015162,2]
[392474898,1761537038087,-500.0,0.00015162,2]
[392474899,1761537038097,-500.0,0.00015162,2]
[392474900,1761537038108,-500.0,0.00015162,2]
[392474901,1761537038118,-500.0,0.00015162,2]
[392474902,1761537038128,-500.0,0.00015162,2]
[392474903,1761537038138,-500.0,0.00015162,2]
[392474904,1761537038147,-500.0,0.00015162,2]
[392474905,1761537038157,-500.0,0.00015162,2]
[392474906,1761537038166,-500.0,0.00015162,2]
[392474907,1761537038176,-500.0,0.00015162,2]
[392474908,1761537038185,-500.0,0.00015162,2]
[392474909,1761537038195,-500.0,0.00015162,2]
[392474910,1761537038205,-500.0,0.00015162,2]
[392474911,1761537038214,-500.0,0.00015162,2]
[392474912,1761537038224,-500.0,0.00015162,2]
[392474913,1761537038234,-500.0,0.00015162,2]
[392474914,1761537038244,-500.0,0.00015162,2]
[392474915,1761537038254,-500.0,0.00015162,2]
[392474916,1761537038264,-500.0,0.00015162,2]
[392474917,1761537038273,-377.85328149,0.00015162,2]
[392474918,1761537038286,-122.14671851,0.00015162,2]
[392474919,1761537038409,-500.0,0.00015162,2]
[392474920,1761537038422,-500.0,0.00015162,2]
[392474921,1761537038432,-500.0,0.00015162,2]
[392474922,1761537038442,-500.0,0.00015162,2]
[392474923,1761537038452,-500.0,0.00015162,2]
[392474924,1761537038462,-500.0,0.00015162,2]
[392474925,1761537038473,-337.76796602,0.00015162,2]
[392475015,1761537045923,-162.23203398,0.00015162,2]
[392475016,1761537045932,-432.57735674,0.00015162,2]
[392475017,1761537045942,-500.0,0.00015162,2]
[392475018,1761537045951,-500.0,0.00015162,2]
[392475019,1761537045960,-500.0,0.00015162,2]
[392475020,1761537045970,-500.0,0.00015162,2]
[392475021,1761537045979,-500.0,0.00015162,2]
[392475022,1761537045988,-500.0,0.00015162,2]
[392475023,1761537045998,-500.0,0.00015162,2]
[392475024,1761537046007,-500.0,0.00015162,2]
[392475025,1761537046016,-500.0,0.00015162,2]
[392475026,1761537046026,-500.0,0.00015162,2]
[392475027,1761537046035,-499.99999999,0.00015162,2]
[392475028,1761537046044,-500.0,0.00015162,2]
[392475029,1761537046053,-307.21921746,0.00015162,2]
[392475030,1761537123284,293.19941567,0.00015061,2]
[392475031,1761537146154,834.34105968,0.00015073,2]
[392475035,1761537339420,151.0,0.000144,2]
[392475036,1761537339720,151.0,0.000135,2]
[392475037,1761537340026,151.0,0.000127,2]
[392475038,1761537340437,151.0,0.000118,2]
[392475039,1761537340670,151.0,0.00011,2]
[392475041,1761537403620,256.54948872,0.00015061,2]
[392475042,1761537489494,667.47284776,0.00015073,2]
[392475046,1761537609193,185.65,0.00015163,3]
[392475049,1761537619822,556.95,0.00015163,3]
[392475050,1761537683702,224.48080263,0.00015058,2]
[392475053,1761537832562,533.9782782,0.00015073,2]
[392475063,1761537969356,196.42070231,0.00015057,2]
[392475064,1761537998623,160.396268,0.00014156,2]
[392475066,1761538084560,187.23,0.00015095,2]
[392475067,1761538084998,187.22,0.00015095,2]
[392475099,1761538176272,427.18262256,0.00015063,2]
[392475100,1761538194402,171.86811453,0.00015056,2]
[392475101,1761538203391,371.3,0.00015152,3]
[392475151,1761538231925,-196.0,0.0001511,2]
[392475153,1761538231934,-609.5,0.00015116,2]
[392475155,1761538231943,-8.66639055,0.00015116,2]
[392475180,1761538237737,-255.57360945,0.00015116,2]
[392475181,1761538237746,-105.25146474,0.0001515,2]
[392475182,1761538237789,-1896.74853526,0.0001515,2]
[392475183,1761538237799,-500.0,0.00015152,2]
[392475184,1761538237808,-650.45154013,0.00015152,2]
[392475185,1761538237818,-500.0,0.00015152,2]
[392475186,1761538237827,-574.00596369,0.00015152,2]
[392475187,1761538237836,-500.0,0.00015152,2]
[392475188,1761538237845,-500.0,0.00015152,2]
[392475189,1761538237855,-500.0,0.00015152,2]
[392475190,1761538237864,-500.0,0.00015152,2]
[392475191,1761538237873,-500.0,0.00015152,2]
[392475192,1761538237882,-157.69037657,0.00015152,2]
[392475193,1761538237892,-500.0,0.00015152,2]
[392475194,1761538237901,-500.0,0.00015152,2]
[392475195,1761538237911,-500.0,0.00015152,2]
[392475196,1761538238079,-500.0,0.00015152,2]
[392475197,1761538238089,-500.0,0.00015152,2]
[392475198,1761538238105,-500.0,0.00015152,2]
[392475199,1761538238115,-500.0,0.00015152,2]
[392475200,1761538238125,-500.0,0.00015152,2]
[392475201,1761538238134,-500.0,0.00015152,2]
[392475202,1761538238144,-500.0,0.00015152,2]
[392475203,1761538238157,-500.0,0.00015152,2]
[392475204,1761538238167,-500.0,0.00015152,2]
[392475205,1761538238176,-500.0,0.00015152,2]
[392475206,1761538238185,-50000.0,0.00015153,2]
[392475207,1761538238196,-1000.0,0.00015153,2]
[392475208,1761538238205,-1000.0,0.00015153,2]
[392475209,1761538238215,-1000.0,0.00015153,2]
[392475210,1761538238225,-1000.0,0.00015153,2]
[392475211,1761538238236,-1073.85148436,0.00015153,2]
[392475212,1761538238245,-1000.0,0.00015153,2]
[392475213,1761538238255,-191.87295522,0.00015153,2]
[392475214,1761538238266,-1000.0,0.00015153,2]
[392475215,1761538238276,-879.61932267,0.00015153,2]
[392475216,1761538238289,-120.38067733,0.00015153,2]
[392475217,1761538238299,-1000.0,0.00015153,2]
[392475218,1761538238309,-1000.0,0.00015153,2]
[392475219,1761538238319,-151.0,0.00015153,2]
[392475220,1761538238328,-275.43997832,0.00015153,2]
[392475221,1761538238338,-1000.0,0.00015153,2]
[392475222,1761538238348,-455.61369404,0.00015153,2]
[392475223,1761538238359,-1000.0,0.00015153,2]
[392475224,1761538238368,-229.50387615,0.00015153,2]
[392475246,1761538360128,1000.0,0.00030136,120]
[392475247,1761538361194,1000.0,0.00030136,120]
[392475248,1761538361989,1000.0,0.00030136,120]
[392475249,1761538362736,1000.0,0.00030136,120]
[392475250,1761538363478,1000.0,0.00030136,120]
[392475251,1761538364185,1000.0,0.00030136,120]
[392475252,1761538364951,1000.0,0.00030136,120]
[392475253,1761538365717,1000.0,0.00030136,120]
[392475254,1761538366912,1000.0,0.00030136,120]
[392475255,1761538367639,1000.0,0.00030136,120]
[392475257,1761538395624,150.38460017,0.00015053,2]
[392475258,1761538517537,341.74609804,0.00015062,2]
[392475259,1761538610821,150.38460015,0.00015052,2]
[392475267,1761538711838,2206.09,0.00015,5]